bitfinex-derivatives/quotes_SOLF0:USTF0_20250416
["timestamp","ask_amount","ask_price","bid_price","bid_amount"]
[1744841108249,7.5288,132.82,132.81,0.04956562]
[1744841108648,565.18129942,132.88,132.81,0.04956562]
[1744841108850,544.5451,132.88,132.81,0.04956562]
[1744841109249,544.5451,132.88,132.81,7.57876562]
[1744841109450,7.5274,132.85,132.81,7.57876562]
[1744841109650,544.5451,132.88,132.81,7.57876562]
[1744841109851,565.18129942,132.88,132.81,0.04956562]
[1744841110350,544.5451,132.88,132.81,0.04956562]
[1744841110651,542.6,132.88,132.81,0.04956562]
[1744841111051,7.5285,132.83,132.81,0.04956562]
[1744841111351,31.22,132.84,132.81,0.04956562]
[1744841111552,7.5288,132.82,132.81,0.04956562]
[1744841111954,31.22,132.84,132.81,0.04956562]
[1744841112955,7.5288,132.82,132.81,0.04956562]
[1744841117655,7.5285,132.83,132.81,0.04956562]
[1744841118556,7.5288,132.82,132.81,0.04956562]
[1744841121350,563.23619942,132.88,132.81,0.04956562]
[1744841121551,30.46,132.9,132.82,20.63619942]
[1744841121753,30.46,132.9,132.86,7.526]
[1744841121957,37.9847,132.9,132.86,7.526]
[1744841122153,30.46,132.9,132.85,0.05566988]
[1744841122552,7.5263,132.87,132.85,0.05566988]
[1744841125459,30.46,132.93,132.86,12.88911628]
[1744841125651,30.46,132.93,132.88,0.0560198]
[1744841125853,7.5243,132.9,132.88,0.0560198]
[1744841126052,43.34911628,132.93,132.88,0.0560198]
[1744841126455,7.5246,132.9,132.88,0.0560198]
[1744841128361,7.5248,132.89,132.88,0.0560198]
[1744841128755,37.9848,132.89,132.88,0.0560198]
[1744841129256,30.46,132.89,132.88,0.0560198]
[1744841129462,30.46,132.92,132.88,0.0560198]
[1744841129656,12.88911628,132.91,132.82,47.25991628]
[1744841130459,7.5264,132.87,132.82,47.25991628]
[1744841130761,0.05490828,132.86,132.84,7.5272]
[1744841130958,0.05706787,132.86,132.84,7.58283127]
[1744841134061,0.05706787,132.86,132.85,7.5271]
[1744841135664,0.05706787,132.86,132.84,20.47214755]
[1744841136266,0.05706787,132.86,132.84,0.05563127]
[1744841136761,7.58376787,132.86,132.84,0.05563127]
[1744841137460,0.05706787,132.86,132.84,12.94474755]
[1744841138263,0.05706787,132.86,132.84,0.05563127]
[1744841139463,0.05706787,132.86,132.84,12.94474755]
[1744841140966,0.05706787,132.86,132.85,7.5271]
[1744841141266,30.46,132.92,132.84,12.94474755]
[1744841141566,30.46,132.92,132.84,12.88911628]
[1744841141762,7.5245,132.9,132.87,7.5258]
[1744841142372,7.5245,132.9,132.87,7.58361034]
[1744841145468,7.5239,132.91,132.88,7.5253]
[1744841146168,30.46,132.92,132.87,0.05781034]
[1744841146369,12.88911628,132.91,132.87,0.05781034]
[1744841146867,7.5254,132.88,132.87,0.05781034]
[1744841147063,37.9854,132.88,132.87,0.05781034]
[1744841147267,30.46,132.88,132.78,44.65881482]
[1744841147468,7.5285,132.83,132.79,7.5302]
[1744841148164,7.5278,132.84,132.8,7.5299]
[1744841148367,0.057188,132.82,132.8,12.94599294]
[1744841148569,0.05236495,132.82,132.8,12.94696814]
[1744841148963,0.05236495,132.82,132.8,0.05785186]
[1744841152366,0.05236495,132.82,132.8,7.58775186]
[1744841152564,7.58116495,132.82,132.8,0.05785186]
[1744841153274,0.05236495,132.82,132.8,7.58765186]
[1744841153569,0.05236495,132.82,132.8,0.05785186]
[1744841154474,7.5294,132.81,132.8,0.05785186]
[1744841155879,0.05236495,132.82,132.8,0.05785186]
[1744841156076,42.92911628,132.92,132.81,12.88911628]
[1744841156279,42.92911628,132.92,132.83,12.88911628]
[1744841156579,42.92911628,132.92,132.83,20.41691628]
[1744841156769,42.92911628,132.92,132.83,7.5278]
[1744841157078,7.5268,132.86,132.83,7.5278]
[1744841157278,7.5268,132.86,132.83,0.05725361]
[1744841157479,12.88911628,132.9,132.83,0.05725361]
[1744841157678,30.04,132.89,132.85,0.05788457]
[1744841158182,7.5271,132.86,132.85,0.05788457]
[1744841160276,20.41621628,132.86,132.85,8.457e-05]
[1744841160475,20.40911628,132.86,132.76,30.04]
[1744841160779,12.88911628,132.82,132.76,30.04]
[1744841160979,12.88911628,132.8,132.71,12.88911628]
[1744841161181,30.04,132.79,132.71,12.88911628]
[1744841161483,0.05013604,132.76,132.74,0.0565573]
[1744841162083,7.5328,132.75,132.74,0.0565573]
[1744841162682,0.05013604,132.76,132.74,0.0565573]
[1744841163383,7.5328,132.75,132.74,0.0565573]
[1744841164393,0.05013604,132.76,132.74,0.0565573]
[1744841164882,7.58283604,132.76,132.74,0.0565573]
[1744841165285,0.05013604,132.76,132.74,0.0565573]
[1744841166381,7.5328,132.75,132.74,0.0565573]
[1744841166886,7.58253604,132.76,132.74,0.0565573]
[1744841167183,0.05013604,132.76,132.74,0.0565573]
[1744841167784,7.58273604,132.76,132.74,0.0565573]
[1744841168885,0.05013604,132.76,132.74,0.0565573]
[1744841169387,7.5328,132.75,132.74,0.0565573]
[1744841170077,37.5928,132.75,132.74,0.0565573]
[1744841170785,30.06,132.75,132.67,30.06]
[1744841171181,30.06,132.75,132.69,7.536]
[1744841171386,30.06,132.75,132.67,30.06]
[1744841171589,50.72318664,132.75,132.67,30.06]
[1744841171787,7.5359,132.7,132.67,30.06]
[1744841171986,0.04818691,132.72,132.67,0.054495]
[1744841172382,7.5362,132.69,132.67,0.054495]
[1744841172688,7.58892367,132.69,132.67,0.054495]
[1744841173087,7.5367,132.68,132.67,0.054495]
[1744841173787,0.05272367,132.69,132.67,0.054495]
[1744841174490,7.58922367,132.69,132.67,0.054495]
[1744841174791,0.05272367,132.69,132.67,0.054495]
[1744841175190,7.5367,132.68,132.67,0.054495]
[1744841179285,20.71591031,132.69,132.61,32.1267]
[1744841179494,20.66318664,132.69,132.61,32.1267]
[1744841180297,7.5384,132.65,132.64,0.05175764]
[1744841181398,0.05680294,132.66,132.58,30.08]
[1744841181597,30.08,132.67,132.58,30.08]
[1744841182193,30.08,132.67,132.59,7.5415]
[1744841182394,7.5401,132.62,132.61,0.04956281]
[1744841183904,50.22318664,132.63,132.49,365.0]
[1744841184102,29.56,132.63,132.53,2.1197]
[1744841185097,0.04878203,132.59,132.57,0.05347656]
[1744841185305,29.62878203,132.59,132.57,0.05347656]
[1744841185499,7.543,132.58,132.57,0.05347656]
[1744841185699,29.62878203,132.59,132.57,0.05347656]
[1744841186504,7.5424,132.58,132.57,0.05347656]
[1744841186701,29.62878203,132.59,132.57,0.05347656]
[1744841187607,29.58,132.66,132.58,12.94688059]
[1744841187796,29.58,132.66,132.59,2.1056]
[1744841188501,7.5403,132.62,132.59,2.1056]
[1744841188709,0.05195937,132.64,132.61,0.05065736]
[1744841189308,7.5399,132.63,132.61,0.05065736]
[1744841190008,7.5401,132.62,132.61,0.05065736]
[1744841192320,7.5398,132.63,132.61,0.05065736]
[1744841192515,0.05195937,132.64,132.61,0.05065736]
[1744841192819,7.5399,132.63,132.61,0.05065736]
[1744841193021,0.05195937,132.64,132.61,0.05065736]
[1744841193524,7.5401,132.62,132.61,0.05065736]
[1744841193721,7.5401,132.62,132.61,5.736e-05]
[1744841193918,37.1201,132.62,132.61,5.736e-05]
[1744841196327,7.5436,132.56,132.53,6.08]
[1744841196721,29.58,132.58,132.53,7.5449]
[1744841196919,29.58,132.58,132.51,6.0226]
[1744841197417,7.545,132.54,132.53,0.0474416]
[1744841198019,37.125,132.54,132.53,4.16e-05]
[1744841198220,7.5472,132.5,132.48,1.9458]
[1744841198525,29.58,132.54,132.48,1.9458]
[1744841198923,29.58,132.54,132.5,7.5465]
[1744841199224,0.04968498,132.53,132.51,0.04838995]
[1744841200223,29.58,132.57,132.51,0.04838995]
[1744841200423,29.58,132.57,132.53,7.5451]
[1744841201226,7.59342372,132.56,132.54,0.0579734]
[1744841202029,7.5441,132.55,132.54,0.0579734]
[1744841204229,7.5441,132.55,132.54,7.34e-05]
[1744841219542,29.54,132.61,132.54,12.95682764]
[1744841219839,29.54,132.61,132.55,4.031]
[1744841220045,12.95675424,132.6,132.55,4.031]
[1744841220441,29.54,132.61,132.55,4.031]
[1744841220743,0.05775106,132.59,132.57,0.05111432]
[1744841221845,7.59975106,132.59,132.57,0.05111432]
[1744841222838,7.5424,132.58,132.57,0.05111432]
[1744841223242,0.05775106,132.59,132.57,0.05111432]
[1744841223444,7.59985106,132.59,132.57,0.05111432]
[1744841223646,0.05775106,132.59,132.57,0.05111432]
[1744841224252,7.5424,132.58,132.57,0.05111432]
[1744841224646,0.05775106,132.59,132.57,7.59371432]
[1744841224948,0.05775106,132.59,132.57,0.05111432]
[1744841225250,7.59995106,132.59,132.57,0.05111432]
[1744841226746,7.59995106,132.59,132.57,2.15221432]
[1744841226949,7.59995106,132.59,132.57,15.10896856]
[1744841226950,0.05775106,132.59,132.57,15.10896856]
[1744841227350,0.05775106,132.59,132.57,2.15221432]
[1744841228247,7.5424,132.58,132.57,0.05111432]
[1744841232354,0.05775106,132.59,132.52,2.1011]
[1744841232648,12.95675424,132.6,132.52,2.1011]
[1744841232854,7.5444,132.55,132.52,2.1011]
[1744841233253,0.04890219,132.55,132.52,2.15770486]
[1744841234158,0.04890219,132.55,132.52,9.70320486]
[1744841235157,0.04890219,132.55,132.53,7.5451]
[1744841235457,0.04890219,132.55,132.52,2.15770486]
[1744841235858,7.59310219,132.55,132.52,9.70320486]
[1744841238059,7.5448,132.54,132.52,2.15770486]
[1744841238260,0.04890219,132.55,132.52,2.15770486]
[1744841238561,0.04890219,132.55,132.52,9.70320486]
[1744841238750,0.04890219,132.55,132.52,2.15770486]
[1744841239263,0.04890219,132.55,132.53,7.5452]
[1744841240260,7.5438,132.56,132.53,7.5452]
[1744841240863,12.95675424,132.6,132.53,42.49675424]
[1744841240864,7.5427,132.58,132.53,42.49675424]
[1744841241073,7.5427,132.58,132.54,4.0455]
[1744841241265,0.05114947,132.57,132.55,0.0567193]
[1744841241558,0.05114947,132.57,132.55,7.6005193]
[1744841242679,0.05114947,132.57,132.56,7.5436]
[1744841242866,572.62,132.63,132.55,13.01347354]
[1744841243070,572.62,132.63,132.55,12.95675424]
[1744841243272,7.5413,132.61,132.55,12.95675424]
[1744841243675,572.62,132.63,132.57,12.95675424]
[1744841243874,0.05089974,132.61,132.59,0.04840375]
[1744841244378,7.5413,132.6,132.59,0.04840375]
[1744841245976,7.59189974,132.61,132.59,0.04840375]
[1744841246271,0.05089974,132.61,132.59,0.04840375]
[1744841246876,7.5413,132.6,132.59,0.04840375]
[1744841247278,7.59189974,132.61,132.59,0.04840375]
[1744841247478,0.05089974,132.61,132.59,0.04840375]
[1744841248078,7.5413,132.6,132.59,0.04840375]
[1744841255185,7.5429,132.58,132.54,33.4855]
[1744841255482,12.95675424,132.62,132.54,33.4855]
[1744841255682,7.5428,132.58,132.54,41.0298]
[1744841256185,0.05504945,132.57,132.55,0.05753465]
[1744841256391,0.04761624,132.57,132.55,0.05753465]
[1744841260685,7.59141624,132.57,132.55,0.05753465]
[1744841261287,7.59141624,132.57,132.55,8.34291643]
[1744841262488,29.48761624,132.57,132.47,29.44]
[1744841262688,8.28538178,132.54,132.49,12.42598178]
[1744841262889,8.28538178,132.56,132.51,8.28538178]
[1744841263088,7.5454,132.55,132.51,8.28538178]
[1744841263386,7.5454,132.55,132.49,4.1406]
[1744841263387,37.72538178,132.57,132.53,8.28538178]
[1744841263591,7.60221186,132.56,132.54,0.05657816]
[1744841263991,0.05751186,132.56,132.54,0.05657816]
[1744841264487,29.44,132.6,132.55,8.28538178]
[1744841264688,7.5429,132.59,132.56,7.5443]
[1744841265488,7.59711915,132.59,132.56,7.59889423]
[1744841266790,0.05421915,132.59,132.56,0.05459423]
[1744841267288,7.5432,132.58,132.56,0.05459423]
[1744841268087,7.5437,132.57,132.56,0.05459423]
[1744841274993,8.28538178,132.58,132.56,0.05459423]
[1744841275294,0.05421915,132.59,132.56,0.05459423]
[1744841275696,7.5437,132.57,132.56,0.05459423]
[1744841281106,0.05421915,132.59,132.56,0.05459423]
[1744841281307,8.28538178,132.58,132.56,0.05459423]
[1744841281609,15.82878178,132.58,132.56,0.05459423]
[1744841285014,7.5434,132.58,132.56,0.05459423]
[1744841285811,7.5434,132.58,132.56,7.59879423]
[1744841286009,7.5434,132.58,132.56,0.05459423]
[1744841286812,7.5434,132.58,132.56,7.59889423]
[1744841287112,0.05421915,132.59,132.56,0.05459423]
[1744841287308,0.05421915,132.59,132.56,7.59869423]
[1744841287812,7.59711915,132.59,132.56,7.59869423]
[1744841292616,7.5432,132.58,132.56,0.05459423]
[1744841293114,7.59721915,132.59,132.56,7.59889423]
[1744841293415,0.05421915,132.59,132.56,0.05459423]
[1744841294316,8.33960093,132.59,132.56,0.05459423]
[1744841294914,7.5437,132.57,132.56,0.05459423]
[1744841296318,8.33960093,132.59,132.56,7.59879423]
[1744841296727,0.05421915,132.59,132.56,0.05459423]
[1744841298225,7.5434,132.58,132.56,0.05459423]
[1744841298623,8.33960093,132.59,132.56,0.05459423]
[1744841298822,7.5437,132.57,132.56,0.05459423]
[1744841299021,8.33960093,132.59,132.56,0.05459423]
[1744841299524,7.5436,132.58,132.56,0.05459423]
[1744841302031,0.05421915,132.59,132.56,8.33997601]
[1744841302230,0.05421915,132.59,132.58,8.28538178]
[1744841302531,7.5434,132.58,132.56,0.05459423]
[1744841305533,0.05421915,132.59,132.57,8.28538178]
[1744841305930,0.05421915,132.59,132.57,10.37848178]
[1744841306133,0.05421915,132.59,132.58,7.5432]
[1744841307136,8.28538178,132.65,132.6,7.5416]
[1744841307337,8.28538178,132.65,132.6,15.82698178]
[1744841307736,7.5402,132.64,132.6,15.82698178]
[1744841307942,7.5402,132.64,132.61,7.5414]
[1744841308128,7.59657817,132.64,132.61,7.59905185]
[1744841308335,7.5404,132.63,132.61,0.05765185]
[1744841309140,7.59637817,132.64,132.61,0.05765185]
[1744841309543,7.59637817,132.64,132.61,7.59895185]
[1744841309739,0.05637817,132.64,132.61,7.59895185]
[1744841310442,7.59647817,132.64,132.61,7.59895185]
[1744841311436,0.05637817,132.64,132.62,7.5409]
[1744841311944,37.70538178,132.63,132.61,5.185e-05]
[1744841312144,8.28538178,132.62,132.54,8.28538178]
[1744841312331,8.28538178,132.6,132.54,8.28538178]
[1744841312835,8.28538178,132.6,132.55,8.28538178]
[1744841313033,0.05542312,132.59,132.56,7.59645415]
[1744841314137,8.28538178,132.64,132.58,8.28538178]
[1744841314442,8.28538178,132.65,132.61,8.28538178]
[1744841314644,29.42,132.66,132.61,8.28538178]
[1744841314839,29.42,132.66,132.62,8.28538178]
[1744841315042,37.70538178,132.66,132.61,8.28538178]
[1744841315243,0.05734528,132.65,132.62,0.04836201]
[1744841316243,7.59684528,132.65,132.62,0.04836201]
[1744841317348,7.59684528,132.65,132.62,7.58916201]
[1744841319043,0.05734528,132.65,132.62,7.58916201]
[1744841319951,7.59664528,132.65,132.62,7.58916201]
[1744841320146,0.05734528,132.65,132.62,0.04836201]
[1744841320850,0.05734528,132.65,132.62,7.58926201]
[1744841321047,0.05734528,132.65,132.62,0.04836201]
[1744841321347,7.59684528,132.65,132.62,0.04836201]
[1744841321647,7.59684528,132.65,132.62,7.58896201]
[1744841322045,0.05734528,132.65,132.62,0.04836201]
[1744841322246,0.05734528,132.65,132.63,7.54]
[1744841322548,7.59654528,132.65,132.62,8.33374379]
[1744841322747,0.05734528,132.65,132.62,0.04836201]
[1744841323252,8.28538178,132.63,132.58,2.0508]
[1744841323447,8.28538178,132.59,132.55,29.4]
[1744841323642,8.28538178,132.61,132.57,8.28538178]
[1744841323847,8.28538178,132.63,132.6,7.5419]
[1744841324047,8.28538178,132.61,132.57,8.28538178]
[1744841324250,8.28538178,132.61,132.58,7.5428]
[1744841324554,0.05348146,132.6,132.58,8.339255]
[1744841324755,0.05341592,132.6,132.58,8.339255]
[1744841325155,0.05341592,132.6,132.59,7.5426]
[1744841325543,0.05341592,132.6,132.58,8.339255]
[1744841325746,0.05341592,132.6,132.58,7.59657322]
[1744841326347,0.05341592,132.6,132.58,0.05387322]
[1744841326553,8.3387977,132.6,132.58,0.05387322]
[1744841326849,7.5426,132.59,132.58,0.05387322]
[1744841328056,15.8810977,132.6,132.58,0.05387322]
[1744841329160,15.82798178,132.59,132.58,0.05387322]
[1744841330852,7.5426,132.59,132.58,0.05387322]
[1744841331153,15.82798178,132.59,132.58,0.05387322]
[1744841335862,7.5426,132.59,132.58,0.05387322]
[1744841337460,37.7387977,132.6,132.58,0.05387322]
[1744841337666,36.99571592,132.6,132.58,0.05387322]
[1744841337867,45.2810977,132.6,132.58,0.05387322]
[1744841338363,0.05341592,132.6,132.58,8.339255]
[1744841338867,0.05341592,132.6,132.58,0.05387322]
[1744841339062,7.59581592,132.6,132.58,0.05387322]
[1744841340266,7.5426,132.59,132.58,0.05387322]
[1744841341873,7.59571592,132.6,132.58,0.05387322]
[1744841342264,15.82798178,132.59,132.58,0.05387322]
[1744841345772,8.3387977,132.6,132.58,0.05387322]
[1744841346870,7.5426,132.59,132.58,0.05387322]
[1744841348965,8.28538178,132.59,132.58,0.05387322]
[1744841349470,15.82798178,132.59,132.58,0.05387322]
[1744841353074,7.5447,132.56,132.53,6.1077]
[1744841353374,8.28538178,132.59,132.54,8.28538178]
[1744841353574,7.5435,132.58,132.55,8.28538178]
[1744841354070,7.59624258,132.58,132.55,8.33956214]
[1744841354269,7.5438,132.57,132.55,8.33956214]
[1744841355176,7.5443,132.56,132.55,0.05418036]
[1744841364878,0.05274258,132.58,132.55,8.33956214]
[1744841365077,0.05274258,132.58,132.56,8.28538178]
[1744841365479,0.05274258,132.58,132.55,15.88446214]
[1744841365798,0.05274258,132.58,132.56,8.28538178]
[1744841366182,7.59624258,132.58,132.56,8.28538178]
[1744841366685,7.5441,132.57,132.55,0.05418036]
[1744841366980,0.05274258,132.58,132.55,0.05418036]
[1744841367285,0.05274258,132.58,132.55,15.88436214]
[1744841367583,7.59624258,132.58,132.55,15.88436214]
[1744841369786,0.05274258,132.58,132.56,7.5443]
[1744841370184,0.05274258,132.58,132.55,8.33956214]
[1744841370777,0.05274258,132.58,132.55,0.05418036]
[1744841371384,7.544,132.57,132.55,0.05418036]
[1744841372189,7.5443,132.56,132.55,0.05418036]
[1744841373487,0.05274258,132.58,132.55,0.05418036]
[1744841373488,7.544,132.57,132.55,0.05418036]
[1744841373687,0.05274258,132.58,132.55,0.05418036]
[1744841373890,7.5442,132.57,132.55,0.05418036]
[1744841374089,0.05274258,132.58,132.55,0.05418036]
[1744841374489,7.5437,132.57,132.55,0.05418036]
[1744841374789,0.05274258,132.58,132.55,0.05418036]
[1744841375090,7.5443,132.56,132.55,0.05418036]
[1744841376389,0.05274258,132.58,132.55,0.05418036]
[1744841376992,7.5443,132.56,132.55,0.05418036]
[1744841378391,15.82968178,132.56,132.55,0.05418036]
[1744841378590,7.5464,132.53,132.5,8.28538178]
[1744841378886,8.28538178,132.56,132.5,8.28538178]
[1744841379093,7.5457,132.54,132.52,8.28538178]
[1744841379587,7.59715844,132.54,132.52,8.28538178]
[1744841379895,7.59715844,132.54,132.52,8.33810534]
[1744841384397,7.546,132.53,132.52,8.33810534]
[1744841385397,7.59715844,132.54,132.52,8.33810534]
[1744841385597,7.59715844,132.54,132.53,8.28538178]
[1744841385899,7.546,132.53,132.52,8.33810534]
[1744841386095,7.546,132.53,132.52,0.05272356]
[1744841391502,7.59725844,132.54,132.52,0.05272356]
[1744841391702,0.05145844,132.54,132.52,8.33810534]
[1744841393205,7.59705844,132.54,132.52,15.88430534]
[1744841393402,7.59705844,132.54,132.52,8.33810534]
[1744841393809,7.59705844,132.54,132.52,15.88460534]
[1744841396106,0.05145844,132.54,132.52,15.88460534]
[1744841396307,0.05145844,132.54,132.53,7.546]
[1744841396610,0.05145844,132.54,132.52,8.33810534]
[1744841397407,0.05145844,132.54,132.52,15.88430534]
[1744841400408,7.59695844,132.54,132.52,0.05272356]
[1744841401408,7.546,132.53,132.52,0.05272356]
[1744841402004,15.83138178,132.53,132.52,0.05272356]
[1744841403006,45.19138178,132.53,132.52,0.05272356]
[1744841403207,8.28538178,132.51,132.47,8.28538178]
[1744841403509,8.28538178,132.52,132.48,8.28538178]
[1744841403709,37.64538178,132.53,132.48,8.28538178]
[1744841404212,7.5474,132.51,132.49,0.04810154]
[1744841404903,7.60311537,132.52,132.49,0.04810154]
[1744841405210,0.05631537,132.52,132.49,8.33348332]
[1744841405408,0.05631537,132.52,132.49,0.04810154]
[1744841405611,7.5476,132.51,132.49,0.04810154]
[1744841408613,7.5476,132.51,132.49,8.33348332]
[1744841409711,7.5477,132.5,132.49,8.33348332]
[1744841409909,7.5477,132.5,132.49,0.04810154]
[1744841412213,15.83308178,132.5,132.49,0.04810154]
[1744841412410,7.5491,132.48,132.45,45.19568178]
[1744841412910,8.28538178,132.49,132.44,7.5509]
[1744841413107,558.407,132.58,132.41,12.30378178]
[1744841413108,8.28538178,132.46,132.41,12.30378178]
[1744841413314,0.05662014,132.45,132.42,0.05285436]
[1744841413711,7.5513,132.44,132.42,0.05285436]
[1744841414319,0.05662014,132.45,132.42,15.89043614]
[1744841414516,0.05662014,132.45,132.44,8.28538178]
[1744841414913,0.05662014,132.45,132.44,15.83648178]
[1744841415218,0.05662014,132.45,132.43,8.28538178]
[1744841415419,0.05662014,132.45,132.42,8.33823614]
[1744841418023,7.60752014,132.45,132.42,15.89053614]
[1744841418223,0.05662014,132.45,132.42,0.05285436]
[1744841418425,0.05662014,132.45,132.43,8.28538178]
[1744841420126,0.05662014,132.45,132.44,8.28538178]
[1744841420525,0.05662014,132.45,132.44,15.83648178]
[1744841420725,7.5488,132.49,132.44,8.28538178]
[1744841420926,29.36,132.5,132.43,29.38]
[1744841420927,29.36,132.5,132.47,8.28538178]
[1744841421124,36.908,132.5,132.48,8.28538178]
[1744841421723,36.96220562,132.5,132.48,8.33499736]
[1744841421926,0.05420562,132.5,132.49,8.28538178]
[1744841422227,0.05420562,132.5,132.48,0.04961558]
[1744841422523,8.28538178,132.55,132.49,8.28538178]
[1744841422730,37.66538178,132.55,132.5,8.28538178]
[1744841423022,7.5458,132.54,132.51,8.28538178]
[1744841423721,7.59339166,132.54,132.51,8.33457338]
[1744841423927,0.04759166,132.54,132.51,8.33457338]
[1744841424324,0.04759166,132.54,132.52,15.83158178]
[1744841424727,0.04759166,132.54,132.53,8.28538178]
[1744841425329,0.04759166,132.54,132.53,15.83138178]
[1744841425727,0.04759166,132.54,132.52,8.28538178]
[1744841425926,0.04759166,132.54,132.51,8.33457338]
[1744841427124,0.04759166,132.54,132.51,0.0491916]
[1744841427730,0.04759166,132.54,132.52,7.5466]
[1744841427928,0.04759166,132.54,132.51,0.0491916]
[1744841428228,8.33297344,132.54,132.51,0.0491916]
[1744841428727,0.04759166,132.54,132.51,0.0491916]
[1744841429530,8.33297344,132.54,132.51,0.0491916]
[1744841429729,8.28538178,132.53,132.51,0.0491916]
[1744841429933,7.5466,132.52,132.51,0.0491916]
[1744841430233,37.67297344,132.54,132.51,0.0491916]
[1744841430528,29.38759166,132.54,132.51,0.0491916]
[1744841430732,0.04759166,132.54,132.51,8.33457338]
[1744841431226,8.33297344,132.54,132.51,0.0491916]
[1744841431432,8.28538178,132.52,132.51,0.0491916]
[1744841431932,15.83198178,132.52,132.51,0.0491916]
[1744841435735,7.5466,132.52,132.51,0.0491916]
[1744841436131,29.34,132.53,132.51,0.0491916]
[1744841436436,8.33297344,132.54,132.51,0.0491916]
[1744841436642,7.5466,132.52,132.51,0.0491916]
[1744841439637,7.5462,132.53,132.51,0.0491916]
[1744841439838,8.33297344,132.54,132.51,0.0491916]
[1744841440439,7.5466,132.52,132.51,0.0491916]
[1744841442541,45.17198178,132.52,132.51,0.0491916]
[1744841442840,7.5494,132.47,132.45,29.34]
[1744841443443,7.549,132.48,132.45,36.8903]
[1744841443636,7.549,132.48,132.45,45.17568178]
[1744841443836,7.60473485,132.48,132.45,45.22556053]
[1744841446048,8.34111663,132.48,132.45,0.04987875]
[1744841447944,7.55,132.46,132.45,0.04987875]
[1744841448144,15.83538178,132.46,132.45,0.04987875]
[1744841449949,7.5519,132.43,132.4,8.28538178]
[1744841450143,8.28538178,132.46,132.42,8.28538178]
[1744841451046,0.05346899,132.45,132.43,0.0570783]
[1744841451338,7.60426899,132.45,132.43,0.0570783]
[1744841451649,0.05346899,132.45,132.43,0.0570783]
[1744841451846,0.05346899,132.45,132.43,15.89366008]
[1744841452047,0.05346899,132.45,132.44,8.28538178]
[1744841452249,7.5484,132.49,132.46,7.5498]
[1744841452448,7.5484,132.49,132.46,15.83518178]
[1744841452647,37.62538178,132.51,132.46,15.83518178]
[1744841453145,37.62538178,132.51,132.46,8.28538178]
[1744841453349,0.05727062,132.5,132.49,8.28538178]
[1744841454552,29.34,132.54,132.49,8.28538178]
[1744841454753,29.34,132.54,132.51,8.28538178]
[1744841454955,7.5461,132.53,132.51,8.28538178]
[1744841455251,29.34,132.54,132.5,15.83278178]
[1744841455451,29.34,132.54,132.51,8.28538178]
[1744841455651,36.9418081,132.54,132.51,15.88148652]
[1744841455851,29.3959081,132.54,132.51,8.33438652]
[1744841456352,7.5463,132.53,132.51,8.33438652]
[1744841457153,7.5463,132.53,132.51,15.88148652]
[1744841459257,7.5463,132.53,132.51,8.33438652]
[1744841459457,36.9416081,132.54,132.51,8.33438652]
[1744841459956,7.6016081,132.54,132.51,8.33438652]
[1744841460151,7.546,132.53,132.51,8.33438652]
[1744841461259,7.5466,132.52,132.51,8.33438652]
[1744841461454,7.5466,132.52,132.51,0.04900474]
[1744841461760,7.5463,132.53,132.51,0.04900474]
[1744841461960,0.0559081,132.54,132.51,8.33438652]
[1744841462366,0.0559081,132.54,132.52,8.28538178]
[1744841462559,0.0559081,132.54,132.53,8.28538178]
[1744841463568,0.0559081,132.54,132.52,12.13848178]
[1744841463766,0.0559081,132.54,132.51,0.04900474]
[1744841464162,7.5465,132.53,132.51,0.04900474]
[1744841464571,0.0559081,132.54,132.51,0.04900474]
[1744841464760,7.5466,132.52,132.51,0.04900474]
[1744841465169,0.0559081,132.54,132.51,0.04900474]
[1744841465365,0.0559081,132.54,132.51,8.33438652]
[1744841465668,7.5461,132.53,132.51,8.33438652]
[1744841466368,0.0559081,132.54,132.51,8.33438652]
[1744841466965,7.5461,132.53,132.51,8.33438652]
[1744841467367,7.5461,132.53,132.51,0.04900474]
[1744841467867,7.5466,132.52,132.51,0.04900474]
[1744841468263,0.0559081,132.54,132.51,0.04900474]
[1744841469666,7.6018081,132.54,132.51,7.59580474]
[1744841469867,7.6018081,132.54,132.51,15.88118652]
[1744841471569,0.0559081,132.54,132.52,7.5463]
[1744841471770,0.0559081,132.54,132.52,15.83168178]
[1744841471971,0.0559081,132.54,132.52,8.28538178]
[1744841472270,8.28538178,132.53,132.51,0.04900474]
[1744841472471,0.0559081,132.54,132.51,0.04900474]
[1744841472667,0.0559081,132.54,132.51,8.33438652]
[1744841472972,7.6016081,132.54,132.51,15.88118652]
[1744841473466,0.0559081,132.54,132.51,8.33438652]
[1744841473967,7.6014081,132.54,132.51,15.88128652]